bitfinex/quotes_ETHUSD_20240714
["timestamp","ask_amount","ask_price","bid_price","bid_amount"]
[1720992072332,3.64045357,3224.2,3222.6,2.6988454]
[1720992072640,3.64045357,3224.2,3222.7,2.6988458]
[1720992072859,3.64045357,3224.2,3222.8,1.07957194]
[1720992073021,3.64045357,3224.2,3222.5,0.63556541]
[1720992073022,0.59563536,3224.1,3222.5,0.63556541]
[1720992073345,0.59563536,3224.1,3222.6,2.69891041]
[1720992073521,0.09043839,3224.0,3222.7,2.69891041]
[1720992073709,0.09043839,3224.0,3222.8,1.07959769]
[1720992073908,0.04043839,3224.0,3222.6,0.63556541]
[1720992074140,0.09043312,3224.0,3222.7,2.6989732]
[1720992074301,2.3159,3224.3,3222.8,1.41304314]
[1720992074501,0.08876223,3223.9,3222.9,1.07958928]
[1720992074697,2.3159,3224.3,3222.8,0.33345386]
[1720992075003,2.3159,3224.3,3222.9,2.69888909]
[1720992075322,0.09635824,3225.0,3222.6,2.82334812]
[1720992075323,0.09635824,3225.0,3224.0,2.4909]
[1720992075526,0.09635824,3225.0,3224.6,0.63556541]
[1720992075865,0.116583,3226.2,3224.9,6.80403812]
[1720992076162,0.116583,3226.2,3225.3,0.6364618]
[1720992076300,0.116583,3226.2,3225.4,2.69774646]
[1720992076507,0.116583,3226.2,3225.5,3.33420826]
[1720992076706,0.116583,3226.2,3225.4,0.95469271]
[1720992076707,0.066583,3226.2,3225.6,1.07909858]
[1720992076962,0.066583,3226.2,3225.4,0.6364618]
[1720992077246,2.2995,3226.0,3224.6,0.6364618]
[1720992077417,0.41695,3225.9,3224.3,0.6364618]
[1720992077786,0.48995371,3225.9,3224.4,2.25479278]
[1720992077970,0.07300371,3225.9,3224.9,2.5064618]
[1720992078143,0.066583,3226.2,3225.2,0.6364618]
[1720992078451,0.066583,3226.2,3225.3,2.6964843]
[1720992078655,0.066583,3226.2,3225.4,1.07859372]
[1720992078808,0.066583,3226.2,3225.0,0.6364618]
[1720992079032,0.07068247,3226.1,3225.1,3.4923272]
[1720992079367,0.066583,3226.2,3225.3,1.7]
[1720992079525,0.07070452,3226.1,3225.1,0.79557725]
[1720992079726,0.066583,3226.2,3225.2,2.69663171]
[1720992079925,0.066583,3226.2,3225.3,1.07867172]
[1720992080129,0.066583,3226.2,3225.4,0.26966505]
[1720992080329,0.07061867,3226.1,3225.1,1.77709423]
[1720992080528,2.54172211,3226.8,3225.2,1.07860886]
[1720992080780,2.54172211,3226.8,3225.1,0.15911545]
[1720992081561,2.54172211,3226.8,3225.4,1.7]
[1720992081867,3.0,3226.7,3225.4,1.7]
[1720992082072,3.0,3226.7,3225.5,0.17]
[1720992082364,2.95,3226.7,3225.6,0.00109743]
[1720992082664,2.95,3226.7,3225.5,0.17]
[1720992082665,0.07057029,3226.6,3225.5,0.17]
[1720992083174,1.29491186,3226.7,3225.5,0.17]
[1720992083329,0.15482211,3226.8,3225.6,0.06328041]
[1720992083531,2.2976,3227.3,3225.5,0.17]
[1720992083755,2.52736,3227.3,3225.5,0.17]
[1720992083964,2.52736,3227.3,3225.6,0.14974229]
[1720992084173,0.06807847,3227.2,3225.7,0.11985718]
[1720992084347,2.52736,3227.3,3225.8,0.06198232]
[1720992084348,2.2976,3227.3,3225.8,0.06198232]
[1720992084680,2.484,3228.0,3225.7,1.7]
[1720992084681,0.06807847,3227.2,3225.7,1.7]
[1720992084886,0.06807847,3227.2,3225.8,0.4175249]
[1720992085045,0.54437003,3227.9,3225.8,0.43673812]
[1720992085460,0.06829725,3227.8,3226.2,1.7]
[1720992085682,0.06829725,3227.8,3226.3,0.01935475]
[1720992086091,2.45442727,3228.1,3226.3,0.56935475]
[1720992086449,2.45442727,3228.1,3226.4,0.0154867]
[1720992086644,2.45442727,3228.1,3226.5,1.7]
[1720992086876,0.31374952,3228.0,3226.6,0.17]
[1720992087085,3.31374952,3228.0,3226.6,0.17]
[1720992087285,3.31374952,3228.0,3225.9,7.28]
[1720992087480,3.31374952,3228.0,3226.3,0.01548757]
[1720992087885,3.31374952,3228.0,3226.2,1.71610691]
[1720992088090,3.31374952,3228.0,3226.2,1.7]
[1720992088462,3.31374952,3228.0,3226.3,0.55]
[1720992088684,3.31374952,3228.0,3226.4,0.225]
[1720992088990,3.31374952,3228.0,3226.3,0.55]
[1720992089191,3.31374952,3228.0,3226.1,0.55]
[1720992089490,3.31374952,3228.0,3225.9,7.28]
[1720992089491,2.47847,3227.8,3225.9,7.28]
[1720992089670,5.2976,3227.9,3225.9,7.28]
[1720992089984,4.47730365,3227.8,3226.0,0.76975249]
[1720992090348,4.47730365,3227.8,3226.1,0.06197645]
[1720992090782,3.92730365,3227.8,3226.2,1.7]
[1720992090949,3.0661687,3227.8,3226.2,1.7]
[1720992091145,2.2976,3227.9,3226.2,1.7]
[1720992091595,0.06610902,3227.8,3226.2,1.7]
[1720992091959,0.06610902,3227.8,3226.3,0.0159015]
[1720992092388,0.06610902,3227.8,3226.0,0.76975249]
[1720992092659,0.06610902,3227.8,3226.1,0.76367841]
[1720992092862,0.06610902,3227.8,3226.1,0.76634878]
[1720992093061,2.2976,3227.9,3226.1,0.76634878]
[1720992093288,2.2976,3227.9,3226.2,0.002668]
[1720992093602,0.06615418,3227.8,3226.1,0.76367841]
[1720992093898,0.29591418,3227.8,3226.2,0.00204714]
[1720992094274,3.29591418,3227.8,3226.1,0.76367841]
[1720992094470,0.06614723,3227.7,3226.2,0.0327057]
[1720992094675,0.30252195,3227.7,3226.2,0.0327057]
[1720992094898,2.2976,3227.9,3226.2,0.5827057]
[1720992095576,0.15682727,3228.1,3226.3,2.3191]
[1720992095776,0.06408134,3228.0,3226.4,0.55]
[1720992095963,0.3115,3228.3,3226.4,0.55]
[1720992096161,0.06248326,3228.2,3226.5,0.28691]
[1720992096393,0.06248326,3228.2,3226.6,0.55]
[1720992097427,0.37398326,3228.2,3226.6,0.55]
[1720992097597,3.37398326,3228.2,3226.6,0.55]
[1720992098078,0.37398326,3228.2,3226.6,0.55]
[1720992098283,0.36337733,3228.1,3226.6,0.55]
[1720992098693,0.06043529,3228.0,3226.6,0.55]
[1720992098998,0.06043529,3228.0,3226.5,0.28691]
[1720992104784,2.2609,3227.9,3226.5,0.28691]
[1720992105001,0.06043775,3227.8,3226.2,7.28]
[1720992105331,0.06042979,3227.8,3226.4,2.93727472]
[1720992105625,0.06042979,3227.8,3226.5,0.53651588]
[1720992105828,0.06042979,3227.8,3226.6,0.53651588]
[1720992106030,0.06042979,3227.8,3226.4,2.93727472]
[1720992106324,0.06042979,3227.8,3226.5,3.76749262]
[1720992106657,0.06042979,3227.8,3226.6,0.53649043]
[1720992106839,0.06042979,3227.8,3226.7,0.53649043]
[1720992107003,0.06042979,3227.8,3226.5,3.23100219]
[1720992107189,0.06042979,3227.8,3226.6,3.47360312]
[1720992107523,0.05841376,3227.7,3226.7,0.91323522]
[1720992107691,0.05841376,3227.7,3226.7,0.37673306]
[1720992108435,0.05841376,3227.7,3226.8,0.53649376]
[1720992108591,1.67438205,3227.9,3226.7,3.31383402]
[1720992108794,0.05445649,3227.8,3226.8,0.53647226]
[1720992109024,0.05445649,3227.8,3226.9,0.38503063]
[1720992109324,0.05445649,3227.8,3226.7,2.93710096]
[1720992109638,0.05445649,3227.8,3226.8,3.47360205]
[1720992109799,0.05445649,3227.8,3226.9,0.53650109]
[1720992110127,0.05445649,3227.8,3226.8,2.93710096]
[1720992110329,0.05445649,3227.8,3226.9,0.53648019]
[1720992110640,0.05445649,3227.8,3226.6,10.21683293]
[1720992110848,0.05445649,3227.8,3226.7,3.47334967]
[1720992111024,0.05445649,3227.8,3226.8,0.536508]
[1720992111326,0.05445649,3227.8,3226.9,0.53648636]
[1720992111630,0.05445649,3227.8,3226.8,2.93716783]
[1720992111840,0.05445649,3227.8,3226.9,0.83020433]
[1720992112126,0.05445649,3227.8,3227.0,0.53648755]
[1720992112441,0.05445649,3227.8,3226.9,3.23088461]
[1720992112442,0.05445649,3227.8,3227.1,0.53647644]
[1720992112731,0.05445649,3227.8,3226.9,3.23088461]
[1720992112897,0.05445649,3227.8,3227.0,0.53647861]
[1720992113088,0.05445649,3227.8,3227.1,0.91321957]
[1720992113401,0.05445649,3227.8,3227.1,0.37673632]
[1720992113710,0.05445649,3227.8,3226.9,0.29371678]
[1720992114044,0.05445649,3227.8,3227.0,0.53648825]
[1720992114384,0.05265065,3227.7,3226.9,2.93683967]
[1720992114585,0.57872017,3227.9,3227.0,1.61473638]
[1720992114839,0.05265591,3227.8,3226.9,2.93683967]
[1720992114996,0.05265591,3227.8,3227.0,1.61472009]
[1720992115345,0.05265591,3227.8,3227.1,3.68719262]
[1720992115634,0.05265591,3227.8,3227.1,0.45515598]
[1720992116251,0.05265591,3227.8,3227.2,2.6955795]
[1720992116388,0.05265591,3227.8,3227.1,0.45515598]
[1720992116593,0.05265591,3227.8,3227.2,1.07823618]
[1720992116804,0.05265591,3227.8,3227.1,0.45515598]
[1720992117027,0.05265591,3227.8,3227.2,2.69558875]
[1720992117314,0.05265591,3227.8,3227.3,2.69558875]
[1720992117522,0.05265591,3227.8,3227.4,1.0782355]
[1720992117729,0.05265591,3227.8,3227.2,1.01161707]
[1720992118028,0.05265591,3227.8,3227.3,2.69558303]
[1720992118195,0.05265591,3227.8,3227.4,2.69558303]
[1720992118512,0.05265591,3227.8,3227.5,1.07823321]
[1720992118720,0.05265591,3227.8,3227.3,0.63322054]
[1720992119027,0.05265591,3227.8,3227.4,2.69556815]
[1720992119229,0.05265591,3227.8,3227.6,0.63322054]
[1720992119389,0.05265591,3227.8,3227.7,2.69556815]
[1720992120198,0.05088622,3227.8,3227.7,4.85192148]
[1720992120391,2.12179,3228.3,3227.7,5.80892178]
[1720992120623,0.05090725,3228.2,3227.8,3.33356224]
[1720992120825,2.12179,3228.3,3227.0,10.21694008]
[1720992121025,0.0509003,3228.1,3227.8,0.63810452]
[1720992121324,2.12179,3228.3,3228.0,0.95715679]
[1720992121625,2.27556856,3228.3,3228.1,3.33493173]
[1720992121834,4.75364856,3228.3,3228.2,2.69553657]
[1720992121994,7.75364856,3228.3,3228.2,2.69553657]
[1720992122744,7.75364856,3228.3,3228.2,1.07821463]
[1720992123048,7.75364856,3228.3,3227.8,0.95715679]
[1720992123212,2.3341,3228.1,3227.9,1.61734361]
[1720992123409,2.3341,3228.1,3227.6,1.27620905]
[1720992123410,2.3341,3228.1,3228.0,1.61734361]
[1720992124197,2.3341,3228.1,3227.6,0.95975387]
[1720992124537,2.3341,3228.1,3227.7,2.57705809]
[1720992124733,2.3341,3228.1,3227.8,1.61730422]
[1720992124894,2.3341,3228.1,3227.9,1.61730422]
[1720992125096,2.3341,3228.1,3227.6,0.95975387]
[1720992125298,2.3341,3228.1,3227.7,1.61729923]
[1720992125543,2.3341,3228.1,3227.8,1.61729923]
[1720992125703,2.3341,3228.1,3227.5,0.95975387]
[1720992125908,2.3341,3228.1,3227.6,1.61735143]
[1720992126106,2.3341,3228.1,3227.5,0.95975387]
[1720992126107,3.34287486,3228.1,3227.7,1.61732706]
[1720992126400,3.0,3228.0,3227.5,0.95975387]
[1720992126611,3.0,3228.0,3227.6,1.61732573]
[1720992126903,3.0,3228.0,3227.7,1.61732573]
[1720992127102,3.0,3228.0,3227.3,0.95975387]
[1720992127305,0.63428749,3227.9,3227.4,1.61735]
[1720992127616,0.63428749,3227.9,3227.5,1.61735]
[1720992127850,3.0,3228.0,3227.6,1.61735]
[1720992128004,3.0,3228.0,3227.3,0.95975387]
[1720992128206,3.0,3228.0,3227.4,1.6173587]
[1720992128405,3.34287486,3228.1,3227.5,1.6173587]
[1720992128617,2.3341,3228.1,3227.6,1.6173587]
[1720992128820,2.3341,3228.1,3227.3,0.95975387]
[1720992129047,2.3341,3228.1,3227.4,1.61737804]
[1720992129199,2.3341,3228.1,3227.5,1.61737804]
[1720992129402,2.3341,3228.1,3227.2,0.95975387]
[1720992129649,3.06908786,3228.1,3227.3,1.61737819]
[1720992129853,3.06908786,3228.1,3227.4,1.61737819]
[1720992130022,3.06908786,3228.1,3227.5,1.61737819]
[1720992130215,3.06908786,3228.1,3227.1,0.95975387]
[1720992130429,3.06908786,3228.1,3227.2,1.61738201]
[1720992130615,3.06908786,3228.1,3227.3,1.61738201]
[1720992130933,3.06908786,3228.1,3227.4,1.61738201]
[1720992131118,0.48624233,3228.0,3227.1,0.95975387]
[1720992131441,0.48624233,3228.0,3227.2,1.61738459]
[1720992131642,0.60336202,3227.9,3227.0,7.28]
[1720992131813,0.60336202,3227.9,3227.1,2.25895181]
[1720992132138,0.60336202,3227.9,3227.0,7.92154212]
[1720992132345,0.60336202,3227.9,3227.1,1.61740772]
[1720992132512,0.48624233,3228.0,3227.0,7.92154212]
[1720992132513,0.48624233,3228.0,3227.0,10.21954212]
[1720992132722,0.48624233,3228.0,3227.1,2.25892966]
[1720992132956,0.48624233,3228.0,3227.5,0.64124123]
[1720992133358,0.48624233,3228.0,3227.4,0.64124123]
[1720992133561,0.48624233,3228.0,3227.5,1.6171139]
[1720992133841,0.48624233,3228.0,3227.2,0.64124123]
[1720992134054,0.05090778,3227.9,3227.3,1.77752079]
[1720992134259,0.05090778,3227.9,3227.3,0.16031031]
[1720992134543,0.05090778,3227.9,3227.0,7.92124123]
[1720992134544,2.2909,3227.8,3227.0,7.92124123]
[1720992134846,2.2909,3227.5,3227.0,7.28]
[1720992135005,5.2909,3227.5,3227.0,7.28]
[1720992135204,0.05093994,3227.4,3227.0,7.28]
[1720992135508,3.05093994,3227.4,3227.0,7.28]
[1720992135734,0.05093994,3227.4,3227.0,7.28]
[1720992136550,0.05093994,3227.4,3226.5,7.28]
[1720992139059,0.0491124,3227.4,3226.5,7.28]
[1720992139780,0.28311364,3227.4,3226.5,7.28]
[1720992140064,3.28311364,3227.4,3226.5,7.28]
[1720992143271,5.76188364,3227.4,3226.5,7.28]
[1720992143583,2.4612,3227.3,3226.5,7.28]
[1720992143747,5.4612,3227.3,3226.5,7.28]
[1720992144065,1.17141239,3227.2,3226.5,7.28]
[1720992145351,1.862,3227.1,3226.5,7.28]
[1720992145570,1.862,3227.1,3226.2,7.28]
[1720992145731,0.0492195,3227.0,3226.2,7.28]
[1720992146367,2.4612,3226.9,3226.2,7.28]
[1720992146572,0.25104195,3226.8,3226.2,7.28]
[1720992146774,0.29993574,3226.8,3226.2,7.28]
[1720992146954,3.29993574,3226.8,3226.2,7.28]
[1720992148101,5.77918574,3226.8,3226.2,7.28]
[1720992150464,3.04889379,3226.8,3226.2,7.28]
[1720992151557,0.04889379,3226.8,3225.9,7.28]
[1720992153094,5.2594,3227.3,3225.9,7.28]
[1720992153253,0.04899351,3226.7,3225.9,7.28]
[1720992153441,5.2594,3227.3,3226.0,0.728]
[1720992153641,0.04901982,3227.2,3225.7,2.4199]
[1720992155278,0.04901982,3227.2,3225.8,0.06198287]
[1720992156086,0.04901982,3227.2,3225.9,2.4211]
[1720992156379,0.15686017,3227.4,3226.0,0.06197731]
[1720992156679,0.04407055,3227.3,3226.0,0.06197731]
[1720992156844,0.04407055,3227.3,3226.1,0.24830773]
[1720992157045,2.3969,3227.7,3226.1,0.24830773]
[1720992157262,0.04406529,3227.2,3226.1,0.24830773]
[1720992157459,2.3969,3227.7,3226.1,0.24830773]
[1720992157744,0.04406003,3227.1,3226.1,0.24830773]
[1720992157940,2.3969,3227.7,3226.1,0.24830773]
[1720992158167,0.04405477,3227.0,3226.2,0.0619739]
[1720992158373,2.3969,3227.7,3226.3,0.06197396]
[1720992158562,2.55105936,3227.7,3226.3,0.06197396]
[1720992158764,3.04408633,3227.6,3226.3,0.06197396]
[1720992159603,3.6036009,3227.6,3226.1,0.24830773]
[1720992163295,3.6036009,3227.6,3226.9,1.7]
[1720992163296,0.04408633,3227.6,3226.9,1.7]
[1720992163493,0.48624233,3228.0,3227.0,6.72822536]
[1720992163660,2.3209,3228.8,3227.2,2.2882]
[1720992163863,0.48611474,3228.7,3227.2,2.2882]
[1720992164376,0.48611474,3228.7,3227.3,0.06194376]
[1720992164574,0.48611474,3228.7,3227.4,0.23501438]
[1720992165279,0.48611474,3228.7,3227.5,0.06194268]
[1720992165794,0.48611474,3228.7,3227.6,2.2882]
[1720992165995,0.15693459,3229.1,3227.7,0.06194253]
[1720992166294,0.48605557,3229.1,3227.9,2.2882]
[1720992166496,0.48605557,3229.1,3228.1,2.2882]
[1720992166719,0.48605557,3229.1,3228.1,5.2882]
[1720992166944,2.47791284,3229.8,3228.1,5.2882]
[1720992167216,2.96386949,3229.8,3228.1,5.2882]
[1720992167781,2.96386949,3229.8,3228.1,7.76643]
[1720992168280,2.96386949,3229.8,3228.2,2.4781]
[1720992168476,2.96386949,3229.8,3228.3,3.502533]
[1720992169278,2.3209,3229.3,3228.3,1.024453]
[1720992169512,2.36539858,3229.3,3228.0,0.23501422]
[1720992170916,2.3209,3229.3,3228.0,0.23501422]
[1720992171118,2.3209,3229.5,3228.1,2.2882]
[1720992171282,0.04517236,3229.2,3228.1,2.2882]
[1720992171482,2.3209,3229.5,3228.2,0.25232142]
[1720992171681,2.3209,3229.5,3228.3,0.06192922]
[1720992171682,0.04514686,3229.1,3228.3,0.06192922]
[1720992171905,2.3209,3229.5,3228.3,0.06192922]
[1720992172106,0.48595665,3229.8,3228.5,2.47792]
[1720992172107,0.04514529,3229.0,3228.5,2.47792]
[1720992172308,0.48595665,3229.8,3228.4,0.55]
[1720992172533,0.48595665,3229.8,3228.5,0.302808]
[1720992172682,0.48595665,3229.8,3228.3,1.7]
[1720992174149,0.48595665,3229.8,3228.4,2.4503]
[1720992174287,0.48595665,3229.8,3228.7,1.7]
[1720992174502,0.48595665,3229.8,3228.8,0.55]
[1720992174737,2.4468,3230.7,3228.8,0.55]
[1720992174919,0.04528142,3229.7,3228.9,0.772777]
[1720992175104,0.48585535,3230.3,3228.9,0.772777]
[1720992175299,0.48585535,3230.3,3229.1,2.47742]
[1720992175550,0.48585535,3230.3,3229.2,0.55]
[1720992176534,2.339,3230.7,3229.4,1.862]
[1720992176716,2.339,3230.7,3229.5,0.60305]
[1720992178235,0.1576422,3231.4,3229.5,0.60305]
[1720992178236,2.339,3231.3,3229.5,0.60305]
[1720992178599,0.03986978,3231.2,3229.5,0.60305]
[1720992180714,2.2815,3231.1,3229.5,0.60305]
[1720992180923,2.2815,3231.1,3229.3,2.4685]
[1720992180924,2.32136453,3231.1,3229.3,2.4685]
[1720992181131,2.32136453,3231.1,3229.3,5.4685]
[1720992182127,2.32136453,3231.1,3229.3,2.4685]
[1720992182449,0.23213645,3231.0,3229.4,0.54685]
[1720992182844,0.03985403,3230.9,3229.4,0.54685]
[1720992183555,0.03985403,3230.9,3229.5,0.06190766]
[1720992183713,0.03985403,3230.9,3229.4,0.54685]
[1720992184113,0.03985403,3230.9,3229.4,3.54685]
[1720992184349,0.03985403,3230.9,3229.5,0.601535]
[1720992185419,0.03985403,3230.9,3229.6,0.06190767]
[1720992185968,0.03985403,3230.9,3229.5,0.601535]
[1720992185969,2.2815,3231.1,3229.5,0.601535]
[1720992186255,0.03984878,3230.8,3229.5,0.601535]
[1720992186431,0.03985928,3231.0,3229.6,0.06190768]
[1720992186762,0.03985403,3230.9,3229.5,0.601535]
[1720992186917,0.03985403,3230.9,3229.6,0.3010385]
[1720992191215,2.3891,3230.8,3229.6,0.3010385]
[1720992191768,0.15739495,3231.1,3229.7,3.9641]
[1720992192059,0.03994724,3230.7,3229.8,0.06190464]
[1720992192215,2.3891,3231.5,3229.9,0.40260046]
[1720992192419,2.3891,3231.5,3230.0,0.06190082]
[1720992192670,2.2649,3231.3,3230.0,0.06190082]
[1720992193158,0.03998301,3231.2,3230.0,0.06190082]
[1720992193568,0.03998301,3231.2,3229.7,1.7]
[1720992193773,0.03998301,3231.2,3229.8,0.20010385]
[1720992194767,0.03998301,3231.2,3229.8,0.2620059]
[1720992195258,0.03998301,3231.2,3229.8,2.1240059]
[1720992195467,0.03998301,3231.2,3229.8,2.06210385]
[1720992195760,0.03998301,3231.2,3229.8,0.20010385]
[1720992195959,0.2304883,3231.1,3229.6,0.3010385]
[1720992196255,0.27046267,3231.1,3229.6,0.3010385]
[1720992197440,0.27046267,3231.1,3229.5,0.601535]
[1720992198544,2.3886,3231.0,3229.5,0.601535]
[1720992198744,2.42869182,3231.0,3229.5,0.601535]
[1720992200563,2.42869182,3231.0,3229.5,1.13752973]
[1720992200761,2.3886,3231.0,3229.5,1.13753051]
[1720992201565,2.3886,3231.0,3229.6,0.53599551]
[1720992202242,2.3886,3231.0,3229.5,3.53175339]
[1720992202441,2.3886,3231.0,3229.6,2.97798012]
[1720992202762,2.3886,3231.0,3229.6,1.36475914]
[1720992203682,2.3886,3231.0,3229.7,1.61322236]
[1720992203879,2.3886,3231.0,3229.6,4.29497991]
[1720992204181,0.040094,3230.9,3229.7,0.53599771]
[1720992204512,0.040094,3230.9,3229.8,0.64468205]
[1720992206500,0.040094,3230.9,3229.9,1.07724744]
[1720992206670,0.040094,3230.9,3229.8,0.64468205]
[1720992207012,0.040094,3230.9,3229.9,1.07724751]
[1720992207173,0.040094,3230.9,3229.7,0.63500729]
[1720992207354,0.040094,3230.9,3229.8,3.32814729]
[1720992207558,0.040094,3230.9,3229.9,2.69314]
[1720992207762,0.040094,3230.9,3230.0,1.077256]
[1720992207971,0.040094,3230.9,3229.8,0.63500729]
[1720992208196,0.15905158,3231.2,3230.1,2.3882]
[1720992208373,0.04008875,3230.8,3230.1,2.3882]
[1720992208700,8.01796068,3231.5,3230.2,1.07722886]
[1720992208894,0.0400835,3230.7,3230.1,2.3882]
[1720992209194,8.01796068,3231.5,3230.2,1.37955638]
[1720992209401,8.01796068,3231.5,3230.1,2.3882]
[1720992209402,0.04007825,3230.6,3230.1,2.3882]
[1720992209562,8.01796068,3231.5,3230.2,2.69309252]
[1720992209762,0.03873706,3230.5,3230.3,1.07723622]
[1720992210076,8.01796068,3231.5,3230.1,0.63500729]
[1720992210258,2.3886,3231.3,3230.2,2.69309141]
[1720992210595,2.3886,3231.3,3230.1,0.63712952]
[1720992210596,0.03876237,3231.2,3230.1,0.63712952]
[1720992210810,0.03876237,3231.2,3230.2,2.693078]
[1720992211100,0.03876237,3231.2,3230.3,1.0772312]
[1720992211259,0.03876237,3231.2,3230.1,0.63712952]
[1720992211460,0.03876237,3231.2,3230.2,2.85233866]
[1720992211661,0.03876237,3231.2,3230.3,2.69305628]
[1720992211900,0.03876237,3231.2,3230.4,2.69305628]
[1720992212109,0.03876237,3231.2,3230.5,1.07722251]
[1720992212310,0.03876237,3231.2,3230.6,1.07717654]
[1720992212611,0.03876237,3231.2,3230.3,0.63712952]
[1720992212810,0.03876237,3231.2,3230.4,2.86818374]
[1720992213117,0.03876237,3231.2,3230.5,2.69297312]
[1720992213414,0.03876237,3231.2,3230.4,0.17521062]
[1720992213720,0.03876237,3231.2,3230.5,1.07718446]
[1720992213875,0.03876237,3231.2,3230.3,0.6381403]
[1720992214081,0.03876237,3231.2,3230.4,2.69298078]
[1720992214407,0.03876237,3231.2,3230.2,0.79743747]
[1720992214599,0.03876237,3231.2,3230.3,2.69297695]
[1720992214800,0.03876237,3231.2,3230.4,3.04201839]
[1720992215006,0.03876237,3231.2,3230.4,0.34904144]
[1720992215309,0.03876237,3231.2,3230.2,0.79743747]
[1720992215512,0.03876237,3231.2,3230.3,2.7548737]
[1720992215710,2.3886,3231.3,3230.4,2.69296834]
[1720992215874,0.03876486,3231.1,3230.5,1.13908512]
[1720992216080,0.03877011,3231.2,3230.5,0.06190166]
[1720992216308,2.3886,3231.3,3230.5,0.06190166]
[1720992216711,0.03877011,3231.2,3230.3,0.70005678]
[1720992216905,0.03877011,3231.2,3230.3,0.63815509]
[1720992217107,0.03877011,3231.2,3230.4,2.69298801]
[1720992217282,0.03877011,3231.2,3230.5,1.0771952]
[1720992217492,0.03877011,3231.2,3230.1,0.63815509]
[1720992217819,0.03877011,3231.2,3230.2,1.07724801]
[1720992217978,0.03877011,3231.2,3230.0,7.28]
[1720992218186,0.03877011,3231.2,3230.1,2.69323528]
[1720992218506,0.24273701,3231.1,3230.0,7.28]
[1720992218829,0.03875961,3231.0,3230.1,1.07731029]
[1720992218987,0.03875961,3231.0,3230.0,7.28]
[1720992219172,0.03875961,3231.0,3230.1,1.07731084]
[1720992219380,0.03875961,3231.0,3230.0,7.28]
[1720992219575,0.03875961,3231.0,3230.1,1.86911792]
[1720992219820,2.4965,3230.9,3230.1,0.79181551]
[1720992220119,2.4965,3230.9,3229.6,10.53375914]
[1720992220326,2.4965,3230.9,3229.9,0.63995519]
[1720992220631,2.4965,3230.9,3230.0,2.6932669]
[1720992220815,2.4965,3230.9,3229.8,0.64020166]
[1720992221116,2.4965,3230.9,3229.9,3.33346926]
[1720992221316,2.4965,3230.9,3230.0,3.02661453]
[1720992221519,2.4965,3230.9,3230.0,0.33334693]
[1720992221678,2.4965,3230.9,3229.8,0.64020166]
[1720992221884,0.15372068,3231.5,3230.0,2.4338]
[1720992222083,3.55378223,3232.8,3231.5,2.4338]
[1720992222322,3.55378223,3232.8,3231.4,1.862]
[1720992222323,0.48576392,3232.8,3232.2,1.862]
[1720992222480,1.5,3234.8,3232.2,5.5238]
[1720992222481,0.03485757,3232.7,3232.2,5.5238]
[1720992222681,2.47323,3234.7,3232.3,1.0764545]
[1720992223046,2.50818922,3234.6,3231.9,5.79364975]
[1720992223370,0.826853,3234.6,3232.0,2.69079046]
[1720992223549,1.55278271,3234.2,3231.9,3.09]
[1720992223881,1.5368298,3234.5,3231.9,3.09]
[1720992224090,1.59085004,3234.1,3231.9,3.09]
[1720992224323,1.55729576,3233.0,3231.9,3.09]
[1720992224492,1.5315085,3233.9,3231.9,3.09]
[1720992224695,1.51089594,3232.8,3231.9,3.09]
[1720992224927,1.862,3232.3,3230.7,9.5538]
[1720992225156,1.862,3231.8,3230.7,2.2738]
[1720992225423,0.70389416,3233.2,3230.6,6.19]
[1720992225424,0.15401564,3232.2,3230.6,6.19]
[1720992225621,2.349,3233.8,3231.3,2.2738]
[1720992225793,0.005,3233.8,3232.3,2.2738]
[1720992226143,1.59271565,3233.7,3232.3,2.2738]
[1720992226418,1.59271565,3233.7,3232.4,1.7]
[1720992226802,1.54465219,3233.2,3232.4,1.7]
[1720992227000,1.59271565,3233.7,3233.0,1.69999997]
[1720992227228,1.59271565,3233.7,3232.6,3.9738]
[1720992227442,1.59271565,3233.7,3232.3,2.47497]
[1720992227443,1.5928526,3234.6,3232.9,1.7]
[1720992227649,0.15709792,3234.7,3232.8,4.67025725]
[1720992227650,1.58415658,3234.7,3232.8,4.67025725]
[1720992227824,1.862,3234.4,3232.8,3.17025725]
[1720992228041,1.50929705,3235.7,3233.7,2.34020166]
[1720992228207,3.00929705,3235.7,3233.6,2.47395]
[1720992228414,1.50929705,3235.7,3234.5,11.122]
[1720992228745,1.6977148,3235.8,3234.5,6.78436]
[1720992228927,1.6977148,3235.8,3234.5,5.80875]
[1720992229257,1.862,3235.1,3234.5,4.30875]
[1720992229422,1.862,3235.2,3234.5,4.30875]
[1720992229649,0.116583,3235.8,3234.5,4.30875]
[1720992229811,0.116583,3235.8,3235.0,1.5]
[1720992230008,1.862,3235.7,3235.0,1.5]
[1720992230260,0.116583,3235.8,3235.0,1.5]
[1720992230529,2.47,3235.6,3234.7,2.2738]
[1720992231352,2.586583,3235.8,3234.7,2.2738]
[1720992231513,2.586583,3235.8,3234.9,1.7]
[1720992231514,0.116583,3235.8,3234.9,1.7]
[1720992232152,0.03046356,3235.7,3234.9,1.7]
[1720992232352,2.47,3235.4,3234.9,1.7]
[1720992232565,0.17618042,3235.4,3234.9,1.7]
[1720992232719,0.03044425,3235.3,3235.2,1.5]
[1720992232915,0.17618042,3235.4,3235.1,12.622]
[1720992233132,0.116583,3235.8,3235.2,2.3658]
[1720992233333,2.47,3235.7,3235.2,2.3658]
[1720992233546,2.47,3235.7,3235.2,5.53605725]
[1720992233846,0.116583,3235.8,3235.2,5.53605725]
[1720992234458,2.47,3235.4,3235.2,5.53605725]
[1720992236044,1.5,3237.9,3235.5,2.47256]
[1720992236304,2.47,3235.9,3235.2,7.23605725]
[1720992236438,2.47,3235.9,3235.5,2.47255]
[1720992236641,2.47,3235.9,3235.8,1.7]
[1720992237301,1.5,3237.9,3236.3,1.5]
[1720992237454,4.644,3237.7,3236.4,2.4063]
[1720992237801,2.47,3236.5,3236.4,3.9063]
[1720992237982,2.47,3236.5,3235.7,3.70111]
[1720992237983,2.47,3236.5,3235.9,3.9088]
[1720992238305,4.644,3237.7,3235.9,2.4088]
[1720992238456,2.47,3236.7,3235.9,2.4088]
[1720992238667,2.47,3236.7,3235.9,4.88106]
[1720992238848,0.02881702,3236.6,3235.9,4.88106]
[1720992239198,0.02881702,3236.6,3235.9,2.4088]